fUSD/lending_fUSD_20250506
["ID","MTS","AMOUNT","RATE_DAILY","PERIOD"]
[360081712,1746541844176,-512.28,0.00019999,2]
[360081713,1746541844188,-746.82,0.00019999,2]
[360081714,1746541844199,-2878.49,0.00019999,2]
[360081715,1746541844209,-512.28,0.00019999,2]
[360081716,1746541844220,-746.82,0.00019999,2]
[360081717,1746541844231,-2878.49,0.00019999,2]
[360081718,1746541844242,-512.28,0.00019999,2]
[360081719,1746541844254,-746.82,0.00019999,2]
[360081720,1746541844267,-2878.49,0.00019999,2]
[360081721,1746541844279,-512.28,0.00019999,2]
[360081722,1746541844291,-746.94,0.00019999,2]
[360081723,1746541844304,-2878.49,0.00019999,2]
[360081724,1746541844314,-512.28,0.00019999,2]
[360081725,1746541844325,-2878.49,0.00019999,2]
[360081726,1746541844336,-512.43000001,0.00019999,2]
[360081727,1746541844347,-2878.49,0.00019999,2]
[360081728,1746541844357,-2878.49,0.00019999,2]
[360081729,1746541844368,-2878.62,0.00019999,2]
[360081730,1746541844378,-462.22,0.00019999,2]
[360081731,1746541844389,-462.22,0.00019999,2]
[360081732,1746541844400,-462.22,0.00019999,2]
[360081733,1746541844411,-462.22,0.00019999,2]
[360081734,1746541844422,-462.22,0.00019999,2]
[360081735,1746541844433,-462.22,0.00019999,2]
[360081736,1746541844443,-462.22,0.00019999,2]
[360081737,1746541844454,-462.22,0.00019999,2]
[360081738,1746541844464,-462.22,0.00019999,2]
[360081739,1746541844475,-462.22,0.00019999,2]
[360081740,1746541844486,-462.22,0.00019999,2]
[360081741,1746541844496,-462.22,0.00019999,2]
[360081742,1746541844507,-450.0,0.00019999,2]
[360081743,1746541844518,-462.22,0.00019999,2]
[360081744,1746541844528,-462.22,0.00019999,2]
[360081745,1746541844538,-462.22,0.00019999,2]
[360081746,1746541844549,-462.22,0.00019999,2]
[360081747,1746541844564,-462.22,0.00019999,2]
[360081748,1746541844574,-462.22,0.00019999,2]
[360081749,1746541844585,-462.22,0.00019999,2]
[360081750,1746541844595,-462.22,0.00019999,2]
[360081751,1746541844606,-462.3,0.00019999,2]
[360081752,1746541844617,-470.39,0.00019999,2]
[360081753,1746541844628,-15644.63,0.00019999,2]
[360081754,1746541844639,-15644.63,0.00019999,2]
[360081755,1746541844650,-15644.63,0.00019999,2]
[360081756,1746541844660,-15644.63,0.00019999,2]
[360081757,1746541844671,-15644.63,0.00019999,2]
[360081758,1746541844681,-15644.63,0.00019999,2]
[360081759,1746541844691,-15644.63,0.00019999,2]
[360081760,1746541844702,-15644.63,0.00019999,2]
[360081761,1746541844712,-15644.63,0.00019999,2]
[360081762,1746541844724,-15644.63,0.00019999,2]
[360081763,1746541844735,-15644.63,0.00019999,2]
[360081764,1746541844746,-15644.63,0.00019999,2]
[360081765,1746541844756,-15644.63,0.00019999,2]
[360081766,1746541844766,-15644.63,0.00019999,2]
[360081767,1746541844777,-15644.63,0.00019999,2]
[360081768,1746541844788,-15644.63,0.00019999,2]
[360081769,1746541844799,-15644.63,0.00019999,2]
[360081770,1746541844809,-15644.63,0.00019999,2]
[360081771,1746541844820,-15644.63,0.00019999,2]
[360081772,1746541844831,-15644.63,0.00019999,2]
[360081773,1746541844842,-15644.63,0.00019999,2]
[360081774,1746541844853,-798.0,0.00019999,2]
[360081775,1746541844863,-1053.355,0.00019999,2]
[360081776,1746541844874,-663.05,0.00019999,2]
[360081777,1746541844885,-1452.0,0.00019999,2]
[360081778,1746541844897,-551.0,0.00019999,2]
[360081779,1746541844908,-1243.0,0.00019999,2]
[360081780,1746541844919,-5933.0,0.00019999,2]
[360081781,1746541844930,-1301.0,0.00019999,2]
[360081782,1746541844941,-4015.0,0.00019999,2]
[360081783,1746541844952,-6764.0,0.00019999,2]
[360081784,1746541844963,-183.325,0.00019999,2]
[360081785,1746541844974,-275.675,0.00019999,2]
[360081786,1746541844985,-500.0,0.00019999,2]
[360081787,1746541844995,-753.0,0.00019999,2]
[360081788,1746541845004,-200.61211145,0.0002,2]
[360081789,1746541845013,-298804.91438276,0.0002,2]
[360081790,1746541845242,-300.68566967,0.00019949,2]
[360081791,1746541845252,-186.8399053,0.00019949,2]
[360081792,1746541845264,-313.1600947,0.00019949,2]
[360081793,1746541845273,-637.9311853,0.00019999,2]
[360081794,1746541845284,-3000.0,0.00019999,2]
[360081795,1746541845295,-480.34809386,0.00019999,2]
[360081796,1746541845464,-500.0,0.00019949,2]
[360081797,1746541845474,-500.0,0.00019949,2]
[360081798,1746541845483,-500.0,0.00019949,2]
[360081799,1746541845492,-131.64817584,0.00019949,2]
[360081800,1746541845504,-368.35182416,0.00019949,2]
[360081801,1746541845513,-500.0,0.00019949,2]
[360081802,1746541845522,-4435.66913013,0.00019999,2]
[360081803,1746541845534,-7090.71781284,0.00019999,2]
[360081804,1746541845543,-928.145,0.00019999,2]
[360081805,1746541845558,-165390.9377566,0.0002,2]
[360081806,1746541845569,-370.44970304,0.0002,2]
[360081807,1746541845582,-18345.69122021,0.0002,2]
[360081808,1746541845594,-554.09,0.0002,2]
[360081813,1746541845834,-500.0,0.00019949,2]
[360081814,1746541845845,-79.999999,0.00019949,2]
[360081815,1746541845856,-286.43999999,0.00019949,2]
[360081816,1746541845868,-133.56000101,0.00019949,2]
[360081817,1746541845878,-433.06764504,0.00019949,2]
[360081818,1746541845889,-66.93235496,0.00019949,2]
[360081819,1746541845898,-500.0,0.00019949,2]
[360081820,1746541845908,-500.0,0.00019949,2]
[360081821,1746541845917,-500.0,0.00019949,2]
[360081822,1746541845927,-500.0,0.00019949,2]
[360081823,1746541845936,-105805.73232726,0.0002,2]
[360081824,1746541846015,-2686.41,0.0002,2]
[360081825,1746541846173,-500.0,0.00019949,2]
[360081826,1746541846182,-454.24398686,0.0002,2]
[360081829,1746541854482,241.0,0.000194,2]
[360081830,1746541933901,1000.0,0.00018913,2]
[360081831,1746541942859,500.0,0.00029589,30]
[360081832,1746541943095,500.0,0.00029863,35]
[360081833,1746541954517,207.52,0.00018913,2]
[360081834,1746541988419,447.771979,7.945e-05,2]
[360081835,1746542035830,207.21,0.00018913,2]
[360081836,1746542056160,150.0,0.00019178,2]
[360081837,1746542083642,1063.09,0.00016991,2]
[360081838,1746542083836,1063.09,0.00019255,2]
[360081839,1746542103845,200.0,0.00019,2]
[360081840,1746542155186,1500.0,0.00019178,2]
[360081841,1746542160916,1136.83,0.00018884,2]
[360081842,1746542176916,1385.68,0.00018873,2]
[360081843,1746542184296,184.04,0.00019427,2]
[360081844,1746542203797,478.49088323,0.0003,30]
[360081845,1746542224192,23900.0,0.00018876,2]
[360081846,1746542228551,160.46,0.00018876,2]
[360081847,1746542277312,2000.0,0.000195,2]
[360081848,1746542408432,158.3,0.00016712,2]
[360081849,1746542525360,500.0,0.00029589,30]
[360081850,1746542525781,500.0,0.00029863,35]
[360081851,1746542567382,500.0,0.00029589,30]
[360081852,1746542567658,500.0,0.00029863,30]
[360081853,1746542611394,302.09631805,0.00019395,2]
[360081854,1746542625074,500.0,0.0003,60]
[360081855,1746542636052,500.0,0.0003,30]
[360081856,1746542637842,250.0,0.00017,2]
[360081857,1746542638859,164.97379166,0.00019,2]
[360081858,1746542638884,135.02620834,0.00019,2]
[360081860,1746542742229,200.0,0.00018868,2]
[360081861,1746542755267,1320.0,0.0003,30]
[360081862,1746542764233,1168.47915635,0.0003,30]
[360081976,1746542898071,-152.0,0.00019556,2]
[360081977,1746542905725,-68.28433428,0.00019556,2]
[360081980,1746542948178,165.3,0.00019438,2]
[360081983,1746543024682,250.0,0.00018848,2]
[360081984,1746543024939,151.44,0.00018864,2]
[360081985,1746543025167,151.44,0.00018887,2]
[360081986,1746543025627,151.44,0.00018911,2]
[360081987,1746543025878,151.44,0.00018934,2]
[360081988,1746543026098,151.44,0.00018958,2]
[360081992,1746543031974,-241.0,0.000196,2]
[360081993,1746543031986,-151.0,0.000196,2]
[360081994,1746543032001,-189.61194208,0.000196,2]
[360081995,1746543032012,-10.38805792,0.000196,2]
[360081996,1746543032022,-150.0,0.000196,2]
[360081997,1746543032032,-172.83676466,0.00019605,2]
[360081998,1746543032044,-27.16323534,0.00019605,2]
[360081999,1746543032054,-322.26566466,0.00019619,2]
[360082000,1746543032066,-877.73433534,0.00019619,2]
[360082001,1746543032077,-300.0,0.00019619,2]
[360082002,1746543032087,-300.0,0.00019619,2]
[360082003,1746543032096,-194.99590111,0.0001962,2]
[360082004,1746543032106,-45474.36976355,0.0001962,2]
[360082005,1746543032122,-5458.637198,0.0001962,2]
[360082006,1746543032134,-424.17503827,0.0001962,2]
[360082007,1746543032145,-404.49608384,0.0001962,2]
[360082008,1746543032156,-282.52499996,0.0001962,2]
[360082019,1746543034134,293.0,0.00018864,2]
[360082020,1746543038045,-438.75999884,0.0001962,2]
[360082021,1746543038070,-977.70976186,0.0001962,2]
[360082022,1746543038094,-673.57008526,0.0001962,2]
[360082023,1746543038119,-40072.78190563,0.0001962,2]
[360082024,1746543038130,-200.0,0.00019621,2]
[360082025,1746543038139,-2485.78852988,0.00019692,2]
[360082026,1746543038149,-2485.78852988,0.00019726,2]
[360082027,1746543038158,-207.4,0.00019786,2]
[360082028,1746543038167,-151.0,0.00019786,2]
[360082029,1746543038176,-668.65185757,0.00019786,2]
[360082030,1746543038186,-151.0,0.00019786,2]
[360082031,1746543038195,-2069.65120107,0.00019797,2]
[360082032,1746543038204,-163.06244883,0.00019798,2]
[360082033,1746543038214,-1441.5929,0.00019798,2]
[360082034,1746543038223,-404.3911,0.00019798,2]
[360082035,1746543038233,-12199.3726,0.00019798,2]
[360082036,1746543038243,-2500.0,0.00019798,2]
[360082037,1746543038252,-5516.88314512,0.00019799,2]
[360082038,1746543038262,-241.0,0.000198,2]
[360082039,1746543038271,-2069.65120099,0.00019808,2]
[360082040,1746543038281,-150.99,0.00019809,2]
[360082041,1746543038290,-5516.88314506,0.0001981,2]
[360082042,1746543038299,-163.06244879,0.00019818,2]
[360082044,1746543038309,-2069.65120099,0.0001982,2]
[360082046,1746543038318,-5516.88314506,0.00019821,2]
[360082048,1746543038328,-554.64474927,0.00019831,2]
[360082050,1746543038338,-554.64474927,0.00019831,2]
[360082052,1746543038347,-554.64474927,0.00019831,2]
[360082053,1746543038356,-554.64474927,0.00019831,2]
[360082055,1746543038366,-554.64474927,0.00019831,2]
[360082057,1746543038374,-554.64474927,0.00019831,2]
[360082060,1746543038384,-554.64474927,0.00019831,2]
[360082062,1746543038393,-554.64474927,0.00019831,2]
[360082064,1746543038402,-554.64474927,0.00019831,2]
[360082066,1746543038411,-554.64474927,0.00019831,2]
[360082068,1746543038420,-554.64474927,0.00019831,2]
[360082070,1746543038429,-554.64474927,0.00019831,2]
[360082072,1746543038438,-554.64474927,0.00019831,2]
[360082074,1746543038448,-554.64474927,0.00019831,2]
[360082076,1746543038458,-554.64474927,0.00019831,2]
[360082078,1746543038468,-554.64474927,0.00019831,2]
[360082080,1746543038477,-554.64474927,0.00019831,2]
[360082082,1746543038486,-554.64474927,0.00019831,2]
[360082084,1746543038495,-554.64474927,0.00019831,2]
[360082086,1746543038505,-554.64474927,0.00019831,2]
[360082088,1746543038514,-554.64474927,0.00019831,2]
[360082090,1746543038524,-554.64474927,0.00019831,2]
[360082092,1746543038533,-554.64474927,0.00019831,2]
[360082094,1746543038542,-554.64474927,0.00019831,2]
[360082096,1746543038551,-554.64474927,0.00019831,2]
[360082098,1746543038560,-554.64474927,0.00019831,2]
[360082100,1746543038569,-554.64474927,0.00019831,2]
[360082103,1746543038578,-554.64474927,0.00019831,2]
[360082105,1746543038597,-554.64474927,0.00019831,2]
[360082107,1746543038607,-554.64474927,0.00019831,2]
[360082109,1746543038616,-554.64474927,0.00019831,2]
[360082111,1746543038625,-554.64474927,0.00019831,2]
[360082113,1746543038635,-554.64474927,0.00019831,2]
[360082115,1746543038644,-554.64474927,0.00019831,2]
[360082117,1746543038653,-554.64474927,0.00019831,2]
[360082119,1746543038663,-554.64474927,0.00019831,2]
[360082121,1746543038672,-554.64474927,0.00019831,2]
[360082123,1746543038681,-554.64474927,0.00019831,2]
[360082125,1746543038691,-554.64474927,0.00019831,2]
[360082127,1746543038700,-554.64474927,0.00019831,2]
[360082129,1746543038709,-554.64474927,0.00019831,2]
[360082131,1746543038718,-554.64474927,0.00019831,2]
[360082133,1746543038728,-2069.65120099,0.00019831,2]
[360082135,1746543038737,-5516.88314506,0.00019833,2]
[360082137,1746543038747,-163.06244879,0.00019839,2]
[360082139,1746543038756,-200.0,0.0001984,2]
[360082141,1746543038766,-2069.65120099,0.00019843,2]
[360082143,1746543038775,-5516.88314506,0.00019844,2]
[360082145,1746543038785,-2069.65120099,0.00019854,2]
[360082147,1746543038794,-5516.88314506,0.00019855,2]
[360082149,1746543038803,-637.3993509,0.00019859,2]
[360082151,1746543038813,-163.06244879,0.00019859,2]
[360082153,1746543038822,-2069.65120099,0.00019866,2]
[360082155,1746543038832,-5516.88314506,0.00019866,2]
[360082157,1746543038842,-500.0,0.00019873,2]
[360082159,1746543038851,-500.0,0.00019873,2]
[360082161,1746543038862,-500.0,0.00019873,2]
[360082163,1746543038871,-500.0,0.00019873,2]
[360082165,1746543038885,-500.0,0.00019873,2]
[360082167,1746543038895,-2069.65120099,0.00019877,2]
[360082169,1746543038904,-5516.88314506,0.00019878,2]
[360082171,1746543038914,-163.06244879,0.0001988,2]
[360082173,1746543038924,-621.9567,0.00019886,2]
[360082175,1746543038934,-2069.65120099,0.00019889,2]
[360082177,1746543038943,-5516.88314506,0.00019889,2]
[360082179,1746543038953,-582.1698,0.0001989,2]
[360082181,1746543038963,-470.0,0.00019897,2]
[360082183,1746543038972,-450.0,0.00019897,2]
[360082184,1746543038982,-450.0,0.00019897,2]
[360082185,1746543038991,-450.0,0.00019897,2]
[360082186,1746543038999,-470.0,0.00019897,2]
[360082187,1746543039009,-527.91,0.00019897,2]
[360082188,1746543039018,-450.0,0.00019897,2]
[360082189,1746543039027,-430.87,0.00019897,2]
[360082190,1746543039037,-450.0,0.00019897,2]
[360082191,1746543039046,-450.0,0.00019897,2]
[360082192,1746543039055,-450.0,0.00019897,2]
[360082193,1746543039065,-470.0,0.00019897,2]
[360082194,1746543039075,-528.18,0.00019897,2]
[360082195,1746543039085,-450.0,0.00019897,2]
[360082196,1746543039094,-298.79,0.00019897,2]
[360082197,1746543039103,-470.0,0.00019897,2]
[360082198,1746543039113,-473.24109782,0.00019897,2]
[360082199,1746543039122,-450.0,0.00019897,2]
[360082201,1746543039134,-450.0,0.00019897,2]
[360082203,1746543039144,-450.0,0.00019897,2]
[360082205,1746543039153,-450.0,0.00019897,2]
[360082207,1746543039163,-547.74057259,0.00019897,2]
[360082209,1746543039172,-450.0,0.00019897,2]
[360082211,1746543039182,-582.52129502,0.00019897,2]
[360082213,1746543039192,-563.15735264,0.00019897,2]
[360082215,1746543039201,-14731.37,0.00019897,2]
[360082217,1746543039211,-450.0,0.00019897,2]
[360082219,1746543039221,-450.0,0.00019897,2]
[360082220,1746543039231,-166.41494126,0.00019897,2]
[360082222,1746543039241,-450.0,0.00019897,2]
[360082224,1746543039251,-450.0,0.00019897,2]
[360082226,1746543039261,-450.0,0.00019897,2]
[360082228,1746543039270,-150.94508316,0.00019897,2]
[360082332,1746543040217,-299.05491684,0.00019897,2]
[360082334,1746543040227,-364.65434742,0.00019897,2]
[360082336,1746543040237,-450.0,0.00019897,2]
[360082338,1746543040247,-494.97206428,0.00019897,2]
[360082340,1746543040257,-450.0,0.00019897,2]
[360082342,1746543040267,-450.0,0.00019897,2]
[360082344,1746543040276,-450.0,0.00019897,2]
[360082346,1746543040286,-450.0,0.00019897,2]
[360082348,1746543040296,-450.0,0.00019897,2]
[360082350,1746543040305,-450.0,0.00019897,2]
[360082352,1746543040315,-450.0,0.00019897,2]
[360082354,1746543040325,-450.0,0.00019897,2]
[360082356,1746543040334,-450.0,0.00019897,2]
[360082358,1746543040344,-450.0,0.00019897,2]
[360082360,1746543040354,-450.0,0.00019897,2]
[360082362,1746543040364,-450.0,0.00019897,2]
[360082364,1746543040373,-450.0,0.00019897,2]
[360082366,1746543040383,-450.0,0.00019897,2]
[360082368,1746543040392,-450.0,0.00019897,2]
[360082370,1746543040401,-450.0,0.00019897,2]
[360082372,1746543040411,-450.0,0.00019897,2]
[360082374,1746543040420,-450.0,0.00019897,2]
[360082376,1746543040430,-450.0,0.00019897,2]
[360082378,1746543040439,-450.0,0.00019897,2]
[360082401,1746543040639,-221.14,0.00019897,2]
[360082403,1746543040649,-450.0,0.00019897,2]
[360082405,1746543040659,-450.0,0.00019897,2]
[360082407,1746543040668,-450.0,0.00019897,2]
[360082409,1746543040678,-450.0,0.00019897,2]
[360082411,1746543040688,-450.0,0.00019897,2]
[360082413,1746543040697,-450.0,0.00019897,2]
[360082415,1746543040707,-450.0,0.00019897,2]
[360082417,1746543040716,-450.0,0.00019897,2]
[360082419,1746543040725,-628.1,0.00019897,2]
[360082421,1746543040734,-450.0,0.00019897,2]
[360082423,1746543040743,-450.0,0.00019897,2]
[360082425,1746543040753,-450.0,0.00019897,2]
[360082427,1746543040763,-450.0,0.00019897,2]
[360082429,1746543040772,-450.0,0.00019897,2]
[360082431,1746543040782,-450.0,0.00019897,2]
[360082433,1746543040791,-450.0,0.00019897,2]
[360082435,1746543040801,-450.0,0.00019897,2]
[360082437,1746543040810,-450.0,0.00019897,2]
[360082439,1746543040820,-450.0,0.00019897,2]
[360082441,1746543040830,-450.0,0.00019897,2]
[360082443,1746543040839,-504.52315858,0.00019897,2]
[360082445,1746543040849,-450.0,0.00019897,2]
[360082447,1746543040859,-450.0,0.00019897,2]
[360082449,1746543040869,-450.0,0.00019897,2]
[360082451,1746543040883,-450.0,0.00019897,2]
[360082453,1746543040892,-450.0,0.00019897,2]
[360082455,1746543040901,-4479.13,0.00019897,2]
[360082457,1746543040911,-450.0,0.00019897,2]
[360082459,1746543040922,-523.41,0.00019897,2]
[360082461,1746543040931,-450.0,0.00019897,2]
[360082463,1746543040940,-551.47756717,0.00019897,2]
[360082465,1746543040948,-450.0,0.00019897,2]
[360082466,1746543040958,-450.0,0.00019897,2]
[360082468,1746543040968,-2960.21,0.00019897,2]
[360082470,1746543040979,-450.0,0.00019897,2]
[360082472,1746543040989,-450.0,0.00019897,2]
[360082475,1746543040998,-645.43,0.00019897,2]
[360082476,1746543041007,-434.06987554,0.00019897,2]
[360082479,1746543041020,-453.483311,0.00019897,2]
[360082481,1746543041029,-260.03,0.00019897,2]
[360082483,1746543041038,-450.0,0.00019897,2]
[360082485,1746543041047,-450.0,0.00019897,2]
[360082487,1746543041057,-450.0,0.00019897,2]
[360082489,1746543041067,-450.0,0.00019897,2]
[360082491,1746543041078,-388.94969,0.00019897,2]
[360082493,1746543041087,-450.0,0.00019897,2]
[360082495,1746543041096,-364.11039157,0.00019897,2]
[360082497,1746543041106,-492.48,0.00019897,2]
[360082499,1746543041116,-450.0,0.00019897,2]
[360082501,1746543041125,-450.0,0.00019897,2]
[360082503,1746543041135,-450.0,0.00019897,2]
[360082505,1746543041144,-450.0,0.00019897,2]
[360082507,1746543041154,-450.0,0.00019897,2]
[360082509,1746543041163,-500.0,0.00019897,2]
[360082511,1746543041172,-231.41578178,0.00019897,2]
[360082513,1746543041181,-206491.4464,0.00019898,2]
[360082515,1746543041190,-166.41494126,0.00019899,2]
[360082517,1746543041201,-962.12,0.00019899,2]
[360082519,1746543041211,-171.249,0.00019899,2]
[360082521,1746543041220,-220.0651245,0.00019899,2]
[360082523,1746543041230,-786.64857207,0.00019899,2]
[360082525,1746543041239,-161.7485,0.00019899,2]
[360082527,1746543041249,-177.61409826,0.000199,2]
[360082530,1746543041259,-166.41494126,0.000199,2]
[360082531,1746543041269,-163.06244879,0.000199,2]
[360082533,1746543041278,-359.728946,0.000199,2]
[360082535,1746543041288,-650.37355376,0.000199,2]
[360082537,1746543041297,-2069.65120099,0.000199,2]
[360082539,1746543041307,-5516.88314506,0.000199,2]
[360082542,1746543041317,-1620.52854014,0.00019912,2]
[360082543,1746543041327,-450.0,0.00019948,2]
[360082545,1746543041336,-500.0,0.00019972,2]
[360082547,1746543041346,-500.0,0.00019973,2]
[360082550,1746543041356,-500.0,0.00019973,2]
[360082551,1746543041365,-500.0,0.00019973,2]
[360082554,1746543041374,-500.0,0.00019973,2]
[360082555,1746543041383,-501.26193126,0.00019973,2]
[360082557,1746543041392,-25871.8563932,0.00019986,2]
[360082559,1746543041401,-1267.8732743,0.00019986,2]
[360082561,1746543041410,-1831.3188248,0.00019986,2]
[360082563,1746543041419,-156.8533334,0.00019986,2]
[360082565,1746543041428,-450.0,0.00019995,2]
[360082567,1746543041438,-540.23321647,0.00019995,2]
[360082569,1746543041447,-450.0,0.00019995,2]
[360082571,1746543041456,-450.0,0.00019995,2]
[360082573,1746543041465,-450.0,0.00019995,2]
[360082575,1746543041474,-628.1,0.00019995,2]
[360082577,1746543041483,-450.0,0.00019995,2]
[360082579,1746543041493,-450.0,0.00019995,2]
[360082581,1746543041502,-450.0,0.00019995,2]
[360082583,1746543041511,-450.0,0.00019995,2]
[360082585,1746543041520,-450.0,0.00019995,2]
[360082587,1746543041529,-2960.21,0.00019995,2]
[360082589,1746543041539,-450.0,0.00019995,2]
[360082591,1746543041548,-450.0,0.00019995,2]
[360082594,1746543041558,-492.48,0.00019995,2]
[360082596,1746543041570,-465.34,0.00019995,2]
[360082598,1746543041580,-213272.27706194,0.00019996,2]
[360082600,1746543041589,-450.0,0.00019997,2]
[360082602,1746543041599,-450.0,0.00019997,2]
[360082604,1746543041608,-450.0,0.00019997,2]
[360082606,1746543041617,-500.0,0.00019997,2]
[360082608,1746543041627,-450.0,0.00019997,2]
[360082610,1746543041636,-450.0,0.00019997,2]
[360082612,1746543041645,-450.0,0.00019997,2]
[360082614,1746543041655,-450.0,0.00019997,2]
[360082616,1746543041665,-450.0,0.00019997,2]
[360082618,1746543041674,-450.0,0.00019997,2]
[360082620,1746543041684,-488.86,0.00019997,2]
[360082622,1746543041693,-450.0,0.00019997,2]
[360082624,1746543041703,-450.0,0.00019997,2]
[360082626,1746543041712,-450.0,0.00019997,2]
[360082628,1746543041721,-450.0,0.00019997,2]
[360082630,1746543041730,-450.0,0.00019997,2]
[360082632,1746543041739,-450.0,0.00019997,2]
[360082634,1746543041749,-450.0,0.00019997,2]
[360082636,1746543041758,-240.40273022,0.00019997,2]
[360082638,1746543041767,-450.0,0.00019997,2]
[360082640,1746543041776,-450.0,0.00019997,2]
[360082642,1746543041786,-450.0,0.00019997,2]
[360082644,1746543041795,-211.02,0.00019997,2]
[360082646,1746543041804,-543.13053759,0.00019997,2]
[360082648,1746543041813,-450.0,0.00019997,2]
[360082650,1746543041822,-450.0,0.00019997,2]
[360082652,1746543041832,-450.0,0.00019997,2]
[360082654,1746543041842,-450.0,0.00019997,2]
[360082656,1746543041851,-450.0,0.00019997,2]
[360082658,1746543041860,-450.0,0.00019997,2]
[360082660,1746543041869,-450.0,0.00019997,2]
[360082662,1746543041880,-450.0,0.00019997,2]
[360082664,1746543041890,-482.99162642,0.00019997,2]
[360082666,1746543041900,-504.33,0.00019997,2]
[360082668,1746543041909,-450.0,0.00019997,2]
[360082670,1746543041918,-450.0,0.00019997,2]
[360082672,1746543041929,-393.46354073,0.00019997,2]
[360082674,1746543041938,-314.22,0.00019997,2]
[360082676,1746543041947,-450.0,0.00019997,2]
[360082678,1746543041957,-2960.21,0.00019997,2]
[360082680,1746543041968,-492.48,0.00019997,2]
[360082682,1746543041978,-500.0,0.00019998,2]
[360082684,1746543041987,-500.0,0.00019998,2]
[360082686,1746543041996,-519.64,0.00019998,2]
[360082688,1746543042006,-450.0,0.00019998,2]
[360082690,1746543042016,-450.0,0.00019998,2]
[360082692,1746543042025,-173.06,0.00019998,2]
[360082694,1746543042034,-490.0,0.00019998,2]
[360082696,1746543042043,-14731.37,0.00019998,2]
[360082698,1746543042054,-14731.37,0.00019998,2]
[360082700,1746543042064,-527.17,0.00019998,2]
[360082702,1746543042073,-450.0,0.00019998,2]
[360082704,1746543042083,-450.0,0.00019998,2]
[360082706,1746543042092,-450.0,0.00019998,2]
[360082708,1746543042102,-450.0,0.00019998,2]
[360082710,1746543042111,-450.0,0.00019998,2]
[360082712,1746543042121,-450.0,0.00019998,2]
[360082714,1746543042131,-450.0,0.00019998,2]
[360082716,1746543042140,-450.0,0.00019998,2]
[360082718,1746543042149,-450.0,0.00019998,2]
[360082720,1746543042159,-450.0,0.00019998,2]
[360082722,1746543042168,-628.1,0.00019998,2]
[360082724,1746543042178,-628.1,0.00019998,2]
[360082726,1746543042187,-628.1,0.00019998,2]
[360082728,1746543042197,-450.0,0.00019998,2]
[360082730,1746543042206,-450.0,0.00019998,2]
[360082732,1746543042216,-450.0,0.00019998,2]
[360082734,1746543042225,-450.0,0.00019998,2]
[360082736,1746543042235,-450.0,0.00019998,2]
[360082738,1746543042244,-450.0,0.00019998,2]
[360082740,1746543042254,-450.0,0.00019998,2]
[360082742,1746543042263,-450.0,0.00019998,2]
[360082744,1746543042273,-450.0,0.00019998,2]
[360082746,1746543042282,-4479.13,0.00019998,2]
[360082748,1746543042292,-4479.13,0.00019998,2]
[360082750,1746543042301,-523.41,0.00019998,2]
[360082752,1746543042311,-523.41,0.00019998,2]
[360082754,1746543042321,-450.0,0.00019998,2]
[360082756,1746543042332,-450.0,0.00019998,2]
[360082758,1746543042343,-450.0,0.00019998,2]
[360082760,1746543042353,-450.0,0.00019998,2]
[360082762,1746543042363,-2960.21,0.00019998,2]